[Event "*** Titled Tuesday Blitz"]
[Site "Chess.com"]
[Date "2020.04.21"]
[Round "4"]
[White "pedroholly22"]
[Black "Atanejhad"]
[Result "1-0"]
[WhiteElo "2335"]
[BlackElo "2518"]
[TimeControl "180+1"]
[EndTime "10:41:30 PDT"]
[Termination "pedroholly22 won by checkmate"]

1. e4 {[%clk 0:03:00.9]} 1... e5 {[%clk 0:02:12.2]} 2. Nf3 {[%clk 0:02:59.3]}
2... Nc6 {[%clk 0:01:59]} 3. Bb5 {[%clk 0:02:58.7]} 3... a6 {[%clk 0:01:58.7]}
4. Ba4 {[%clk 0:02:58.5]} 4... Nf6 {[%clk 0:01:59.2]} 5. O-O {[%clk 0:02:56.3]}
5... Be7 {[%clk 0:01:58.8]} 6. Re1 {[%clk 0:02:56.1]} 6... b5 {[%clk 0:01:58.4]}
7. Bb3 {[%clk 0:02:56]} 7... d6 {[%clk 0:01:59.3]} 8. c3 {[%clk 0:02:50.5]} 8...
O-O {[%clk 0:01:59.4]} 9. h3 {[%clk 0:02:49.8]} 9... Bb7 {[%clk 0:01:53]} 10. d4
{[%clk 0:02:49.2]} 10... Nd7 {[%clk 0:01:51.4]} 11. Nbd2 {[%clk 0:02:47]} 11...
exd4 {[%clk 0:01:50.9]} 12. cxd4 {[%clk 0:02:46.1]} 12... Na5 {[%clk 0:01:51.8]}
13. Bc2 {[%clk 0:02:45.7]} 13... c5 {[%clk 0:01:52.4]} 14. Nf1 {[%clk
0:02:36.8]} 14... Re8 {[%clk 0:01:50.9]} 15. b3 {[%clk 0:02:27.2]} 15... Bf6
{[%clk 0:01:48.8]} 16. Bb2 {[%clk 0:02:24]} 16... Nc6 {[%clk 0:01:47]} 17. Ng3
{[%clk 0:02:20.3]} 17... g6 {[%clk 0:01:46.3]} 18. Rc1 {[%clk 0:02:19]} 18...
Rc8 {[%clk 0:01:42.8]} 19. Qd2 {[%clk 0:02:07.7]} 19... Bg7 {[%clk 0:01:39.7]}
20. Bb1 {[%clk 0:02:06.9]} 20... Qe7 {[%clk 0:01:18.2]} 21. dxc5 {[%clk
0:01:46.3]} 21... Bxb2 {[%clk 0:01:10.5]} 22. Qxb2 {[%clk 0:01:40.9]} 22... dxc5
{[%clk 0:01:05.4]} 23. e5 {[%clk 0:01:32.3]} 23... Ncxe5 {[%clk 0:00:49.2]} 24.
Nxe5 {[%clk 0:01:31.8]} 24... Nxe5 {[%clk 0:00:49.5]} 25. f4 {[%clk 0:01:10.2]}
25... Qh4 {[%clk 0:00:49]} 26. Qf2 {[%clk 0:01:09.5]} 26... Nd7 {[%clk
0:00:38.1]} 27. Red1 {[%clk 0:01:02]} 27... Nf6 {[%clk 0:00:35.1]} 28. Rd6
{[%clk 0:00:54.3]} 28... c4 {[%clk 0:00:19.2]} 29. bxc4 {[%clk 0:00:52.3]} 29...
Rxc4 {[%clk 0:00:20.1]} 30. Rxc4 {[%clk 0:00:45.4]} 30... bxc4 {[%clk 0:00:21]}
31. Bc2 {[%clk 0:00:44.9]} 31... Kg7 {[%clk 0:00:14.8]} 32. Rd4 {[%clk
0:00:41.4]} 32... Kg8 {[%clk 0:00:09.8]} 33. Rxc4 {[%clk 0:00:40]} 33... Bd5
{[%clk 0:00:09.9]} 34. Ra4 {[%clk 0:00:36.2]} 34... Bb7 {[%clk 0:00:08.8]} 35.
f5 {[%clk 0:00:36.1]} 35... Qg5 {[%clk 0:00:06.1]} 36. fxg6 {[%clk 0:00:36.2]}
36... hxg6 {[%clk 0:00:07]} 37. Rf4 {[%clk 0:00:35.1]} 37... Kg7 {[%clk
0:00:05.8]} 38. Bb3 {[%clk 0:00:33.8]} 38... Re7 {[%clk 0:00:05.7]} 39. h4
{[%clk 0:00:32.3]} 39... Qe5 {[%clk 0:00:04.8]} 40. Kh2 {[%clk 0:00:28.2]} 40...
Bd5 {[%clk 0:00:04.7]} 41. Rxf6 {[%clk 0:00:23.5]} 41... Bxb3 {[%clk 0:00:03.6]}
42. Rxa6 {[%clk 0:00:22.2]} 42... Bc4 {[%clk 0:00:01.5]} 43. Rc6 {[%clk
0:00:21.5]} 43... Bd5 {[%clk 0:00:02.4]} 44. Rc3 {[%clk 0:00:20.4]} 44... Re6
{[%clk 0:00:03.3]} 45. Rd3 {[%clk 0:00:19.6]} 45... Rf6 {[%clk 0:00:03.5]} 46.
Qd4 {[%clk 0:00:20.2]} 46... Qxd4 {[%clk 0:00:03.1]} 47. Rxd4 {[%clk 0:00:21.1]}
47... Bxa2 {[%clk 0:00:03.6]} 48. h5 {[%clk 0:00:21.7]} 48... Be6 {[%clk
0:00:04.3]} 49. hxg6 {[%clk 0:00:21.9]} 49... Kxg6 {[%clk 0:00:04.8]} 50. Rh4
{[%clk 0:00:21.6]} 50... Rf2 {[%clk 0:00:03.7]} 51. Rd4 {[%clk 0:00:21]} 51...
Ra2 {[%clk 0:00:04.6]} 52. Kg1 {[%clk 0:00:20.4]} 52... Kf6 {[%clk 0:00:05.1]}
53. Rf4+ {[%clk 0:00:20.6]} 53... Ke7 {[%clk 0:00:05.9]} 54. Rf1 {[%clk
0:00:20.6]} 54... Ra6 {[%clk 0:00:06.2]} 55. Rf2 {[%clk 0:00:20.9]} 55... Ra1+
{[%clk 0:00:06.5]} 56. Kh2 {[%clk 0:00:20.7]} 56... Ra3 {[%clk 0:00:07.1]} 57.
Ne4 {[%clk 0:00:21]} 57... Ra4 {[%clk 0:00:06.8]} 58. Ng5 {[%clk 0:00:21.1]}
58... Bd5 {[%clk 0:00:06.6]} 59. Re2+ {[%clk 0:00:21.5]} 59... Kf6 {[%clk
0:00:06.1]} 60. Nh3 {[%clk 0:00:21.4]} 60... Ra3 {[%clk 0:00:05.7]} 61. Rf2+
{[%clk 0:00:21.7]} 61... Kg7 {[%clk 0:00:05.5]} 62. Nf4 {[%clk 0:00:22.3]} 62...
Be4 {[%clk 0:00:04.8]} 63. Re2 {[%clk 0:00:22.2]} 63... Bf5 {[%clk 0:00:04.6]}
64. Re5 {[%clk 0:00:22.1]} 64... Bg4 {[%clk 0:00:04]} 65. Rg5+ {[%clk
0:00:22.1]} 65... Kf6 {[%clk 0:00:03.2]} 66. Rxg4 {[%clk 0:00:23]} 66... Kf5
{[%clk 0:00:03.6]} 67. Rh4 {[%clk 0:00:23.2]} 67... Kg5 {[%clk 0:00:02.2]} 68.
g3 {[%clk 0:00:19.7]} 68... Ra2+ {[%clk 0:00:02]} 69. Kh3 {[%clk 0:00:20]} 69...
f6 {[%clk 0:00:02.4]} 70. Rh5# {[%clk 0:00:20.1]} 1-0

[Event "*** Titled Tuesday Blitz"]
[Site "Chess.com"]
[Date "2020.04.21"]
[Round "4"]
[White "ToivoK3"]
[Black "RovenVogel"]
[Result "1-0"]
[WhiteElo "2900"]
[BlackElo "2687"]
[TimeControl "180+1"]
[EndTime "10:41:33 PDT"]
[Termination "ToivoK3 won on time"]

1. b3 {[%clk 0:03:00.9]} 1... d5 {[%clk 0:02:59.3]} 2. Bb2 {[%clk 0:02:59.8]}
2... Bf5 {[%clk 0:02:59.2]} 3. Nf3 {[%clk 0:02:51.2]} 3... e6 {[%clk 0:02:59.3]}
4. g3 {[%clk 0:02:51.5]} 4... Nf6 {[%clk 0:02:58.5]} 5. Nh4 {[%clk 0:02:51.9]}
5... Be4 {[%clk 0:02:57.9]} 6. f3 {[%clk 0:02:52.1]} 6... Bg6 {[%clk 0:02:57.6]}
7. Bg2 {[%clk 0:02:52]} 7... c5 {[%clk 0:02:52.6]} 8. O-O {[%clk 0:02:51.1]}
8... Nc6 {[%clk 0:02:52.3]} 9. e4 {[%clk 0:02:34.5]} 9... dxe4 {[%clk
0:02:43.3]} 10. Nxg6 {[%clk 0:02:34.4]} 10... hxg6 {[%clk 0:02:42]} 11. fxe4
{[%clk 0:02:34.8]} 11... c4 {[%clk 0:02:38.3]} 12. Kh1 {[%clk 0:02:16.5]} 12...
e5 {[%clk 0:02:32.4]} 13. bxc4 {[%clk 0:02:11.9]} 13... Bc5 {[%clk 0:02:25.6]}
14. Nc3 {[%clk 0:01:52.2]} 14... Qd6 {[%clk 0:01:56.6]} 15. Nd5 {[%clk
0:01:30.9]} 15... O-O-O {[%clk 0:01:50.3]} 16. Qf3 {[%clk 0:01:30.5]} 16... Qe6
{[%clk 0:01:43.5]} 17. h4 {[%clk 0:01:17.1]} 17... g5 {[%clk 0:01:43.4]} 18. Qf5
{[%clk 0:01:08.5]} 18... gxh4 {[%clk 0:01:41.8]} 19. g4 {[%clk 0:01:05.7]} 19...
h3 {[%clk 0:01:23.4]} 20. Bf3 {[%clk 0:01:04.1]} 20... Qxf5 {[%clk 0:01:22.6]}
21. gxf5 {[%clk 0:00:44]} 21... Rh4 {[%clk 0:01:20.5]} 22. d3 {[%clk 0:00:38.5]}
22... Nd4 {[%clk 0:01:15]} 23. Bxd4 {[%clk 0:00:20.1]} 23... Bxd4 {[%clk
0:01:15.9]} 24. c3 {[%clk 0:00:20.3]} 24... Bc5 {[%clk 0:01:16.1]} 25. Rad1
{[%clk 0:00:19.9]} 25... Ng4 {[%clk 0:00:44.3]} 26. d4 {[%clk 0:00:15.8]} 26...
Bd6 {[%clk 0:00:36.1]} 27. c5 {[%clk 0:00:16]} 27... Bb8 {[%clk 0:00:35.8]} 28.
Rd2 {[%clk 0:00:08.7]} 28... Rxd5 {[%clk 0:00:23.3]} 29. exd5 {[%clk 0:00:07.6]}
29... Ne3 {[%clk 0:00:20.7]} 30. Rg1 {[%clk 0:00:07.7]} 30... e4 {[%clk
0:00:20.3]} 31. Bd1 {[%clk 0:00:06.1]} 31... Nxf5 {[%clk 0:00:20.3]} 32. Bg4
{[%clk 0:00:05.7]} 32... g6 {[%clk 0:00:18.4]} 33. Rf2 {[%clk 0:00:04.1]} 33...
h2 {[%clk 0:00:14.9]} 34. Rgg2 {[%clk 0:00:03.3]} 34... e3 {[%clk 0:00:11.9]}
35. Rf1 {[%clk 0:00:01.9]} 35... Kd8 {[%clk 0:00:10]} 36. Bxf5 {[%clk
0:00:01.9]} 36... gxf5 {[%clk 0:00:10.9]} 37. Rxf5 {[%clk 0:00:02.5]} 37... Bf4
{[%clk 0:00:09.6]} 38. Re2 {[%clk 0:00:02.9]} 38... Ke7 {[%clk 0:00:08.6]} 39.
d6+ {[%clk 0:00:03.1]} 39... Ke6 {[%clk 0:00:08.4]} 40. d7 {[%clk 0:00:03.9]}
40... Kxd7 {[%clk 0:00:08.2]} 41. Rxf7+ {[%clk 0:00:04.3]} 41... Kc6 {[%clk
0:00:09.1]} 42. Rg7 {[%clk 0:00:05.2]} 42... b6 {[%clk 0:00:08.5]} 43. Rg6+
{[%clk 0:00:05.5]} 43... Kd5 {[%clk 0:00:08.3]} 44. cxb6 {[%clk 0:00:06.4]}
44... axb6 {[%clk 0:00:09.2]} 45. Rxb6 {[%clk 0:00:05.6]} 45... Kc4 {[%clk
0:00:09.2]} 46. Rg6 {[%clk 0:00:05.4]} 46... Kd3 {[%clk 0:00:09.1]} 47. Rgg2
{[%clk 0:00:03.4]} 47... Rh6 {[%clk 0:00:08.8]} 48. d5 {[%clk 0:00:03.5]} 48...
Rb6 {[%clk 0:00:07.1]} 49. Re1 {[%clk 0:00:03.6]} 49... Kxc3 {[%clk 0:00:06]}
50. Rf1 {[%clk 0:00:04]} 50... Be5 {[%clk 0:00:03.4]} 51. Re2 {[%clk 0:00:04.1]}
51... Kd4 {[%clk 0:00:04.3]} 52. Rd1+ {[%clk 0:00:03.9]} 52... Ke4 {[%clk
0:00:04.4]} 53. a4 {[%clk 0:00:03.9]} 53... Kf3 {[%clk 0:00:03.9]} 54. Rde1
{[%clk 0:00:03]} 54... Bf4 {[%clk 0:00:04]} 55. Ra2 {[%clk 0:00:03.6]} 55... Rd6
{[%clk 0:00:02.8]} 56. a5 {[%clk 0:00:04]} 56... Bg3 {[%clk 0:00:02.2]} 57. Rf1+
{[%clk 0:00:03.8]} 57... Bf2 {[%clk 0:00:02]} 58. a6 {[%clk 0:00:04.3]} 58... e2
{[%clk 0:00:01.9]} 59. Rxe2 {[%clk 0:00:04]} 59... Kxe2 {[%clk 0:00:02.8]} 60.
Ra1 {[%clk 0:00:03.8]} 60... Rxd5 {[%clk 0:00:02.1]} 61. Ra2+ {[%clk 0:00:04.3]}
61... Kf3 {[%clk 0:00:01.8]} 62. a7 {[%clk 0:00:04.1]} 62... Be3 {[%clk
0:00:02.7]} 63. a8=Q {[%clk 0:00:01.2]} 1-0

[Event "*** Titled Tuesday Blitz"]
[Site "Chess.com"]
[Date "2020.04.21"]
[Round "4"]
[White "GadimbayliA"]
[Black "Korchmar_Vasiliy"]
[Result "1-0"]
[WhiteElo "2927"]
[BlackElo "2580"]
[TimeControl "180+1"]
[EndTime "10:41:36 PDT"]
[Termination "GadimbayliA won on time"]

1. e4 {[%clk 0:03:00.9]} 1... c5 {[%clk 0:02:59.9]} 2. Nf3 {[%clk 0:02:59.4]}
2... d6 {[%clk 0:03:00.4]} 3. d4 {[%clk 0:02:59.4]} 3... cxd4 {[%clk 0:03:01.3]}
4. Nxd4 {[%clk 0:03:00.2]} 4... Nf6 {[%clk 0:03:01.9]} 5. Nc3 {[%clk 0:03:00.8]}
5... Nc6 {[%clk 0:03:02.5]} 6. Bb5 {[%clk 0:03:00.3]} 6... Bd7 {[%clk 0:03:02]}
7. Bg5 {[%clk 0:03:00.4]} 7... e6 {[%clk 0:02:56.9]} 8. O-O {[%clk 0:02:58.1]}
8... Be7 {[%clk 0:02:57.1]} 9. Bxc6 {[%clk 0:02:55.6]} 9... bxc6 {[%clk
0:02:56.9]} 10. e5 {[%clk 0:02:55.6]} 10... dxe5 {[%clk 0:02:51.6]} 11. Nf3
{[%clk 0:02:55.8]} 11... Nd5 {[%clk 0:02:43.5]} 12. Bxe7 {[%clk 0:02:55]} 12...
Qxe7 {[%clk 0:02:44.4]} 13. Nxe5 {[%clk 0:02:54.8]} 13... Nxc3 {[%clk
0:02:42.8]} 14. bxc3 {[%clk 0:02:55.7]} 14... Rd8 {[%clk 0:02:32.3]} 15. Rb1
{[%clk 0:02:55.6]} 15... Qc5 {[%clk 0:01:50.1]} 16. Re1 {[%clk 0:02:54.9]} 16...
Bc8 {[%clk 0:01:26.1]} 17. Qf3 {[%clk 0:02:54.5]} 17... O-O {[%clk 0:01:25.2]}
18. Nxc6 {[%clk 0:02:55]} 18... Rd2 {[%clk 0:01:17.7]} 19. Nd4 {[%clk
0:02:54.9]} 19... Qc4 {[%clk 0:01:00]} 20. Qe3 {[%clk 0:02:51]} 20... Rxd4
{[%clk 0:00:56.4]} 21. cxd4 {[%clk 0:02:14.5]} 21... Qxc2 {[%clk 0:00:54.9]} 22.
Qb3 {[%clk 0:02:09.3]} 22... Qf5 {[%clk 0:00:37.8]} 23. Qb5 {[%clk 0:01:57]}
23... Qg4 {[%clk 0:00:24]} 24. Qc5 {[%clk 0:01:56.1]} 24... Ba6 {[%clk
0:00:20.8]} 25. Qxa7 {[%clk 0:01:50.9]} 25... Bc4 {[%clk 0:00:19.1]} 26. h3
{[%clk 0:01:33.3]} 26... Qg6 {[%clk 0:00:16.5]} 27. Rb8 {[%clk 0:01:26.5]} 27...
Bd5 {[%clk 0:00:16.7]} 28. Rxf8+ {[%clk 0:01:26.1]} 28... Kxf8 {[%clk
0:00:17.2]} 29. Qb8+ {[%clk 0:01:26.5]} 29... Ke7 {[%clk 0:00:17.5]} 30. Qc7+
{[%clk 0:01:22.6]} 30... Ke8 {[%clk 0:00:11.4]} 31. Qg3 {[%clk 0:00:58.9]} 31...
Qxg3 {[%clk 0:00:10.7]} 32. fxg3 {[%clk 0:00:59.8]} 32... Bxa2 {[%clk
0:00:11.3]} 33. Kf2 {[%clk 0:00:59.5]} 33... Ke7 {[%clk 0:00:10.9]} 34. g4
{[%clk 0:00:59.8]} 34... Bd5 {[%clk 0:00:09.2]} 35. g3 {[%clk 0:01:00.3]} 35...
Kf6 {[%clk 0:00:08.5]} 36. Ke3 {[%clk 0:01:00]} 36... h6 {[%clk 0:00:07.9]} 37.
Rf1+ {[%clk 0:00:57.8]} 37... Ke7 {[%clk 0:00:05.4]} 38. Kf4 {[%clk 0:00:58]}
38... Bg2 {[%clk 0:00:05]} 39. Rf2 {[%clk 0:00:57.9]} 39... Bxh3 {[%clk
0:00:04]} 40. g5 {[%clk 0:00:27.3]} 40... hxg5+ {[%clk 0:00:03.7]} 41. Kxg5
{[%clk 0:00:28.2]} 41... Bf5 {[%clk 0:00:03.1]} 42. g4 {[%clk 0:00:26.5]} 42...
Be4 {[%clk 0:00:03.1]} 43. Ra2 {[%clk 0:00:24.5]} 43... f6+ {[%clk 0:00:02.1]}
44. Kf4 {[%clk 0:00:25]} 44... Bd5 {[%clk 0:00:02.4]} 45. Ra7+ {[%clk
0:00:24.6]} 45... Kf8 {[%clk 0:00:02.9]} 46. g5 {[%clk 0:00:22.3]} 46... fxg5+
{[%clk 0:00:03.3]} 47. Kxg5 {[%clk 0:00:23.2]} 47... Be4 {[%clk 0:00:03.1]} 48.
Kf4 {[%clk 0:00:21.8]} 48... Bd5 {[%clk 0:00:02.9]} 49. Ke5 {[%clk 0:00:22.1]}
49... Kg8 {[%clk 0:00:03.3]} 50. Kd6 {[%clk 0:00:20.1]} 50... Bc4 {[%clk
0:00:03.1]} 51. Ke7 {[%clk 0:00:19.9]} 51... Bd5 {[%clk 0:00:03.3]} 52. Rc7
{[%clk 0:00:16.6]} 52... Kh7 {[%clk 0:00:02.8]} 53. Kf7 {[%clk 0:00:14.5]} 53...
e5+ {[%clk 0:00:02.5]} 54. Ke7 {[%clk 0:00:08.6]} 54... exd4 {[%clk 0:00:03.4]}
55. Rd7 {[%clk 0:00:09.5]} 55... Bb3 {[%clk 0:00:02.6]} 56. Rxd4 {[%clk
0:00:10.3]} 56... Bc2 {[%clk 0:00:02.7]} 57. Kf7 {[%clk 0:00:09.5]} 57... Bg6+
{[%clk 0:00:02.9]} 58. Kf8 {[%clk 0:00:09.8]} 58... Bc2 {[%clk 0:00:02.9]} 59.
Rd2 {[%clk 0:00:10]} 59... Bb1 {[%clk 0:00:02.6]} 60. Rd1 {[%clk 0:00:09.9]}
60... Bc2 {[%clk 0:00:01.6]} 61. Rc1 {[%clk 0:00:10.4]} 61... Bd3 {[%clk
0:00:01.9]} 62. Rg1 {[%clk 0:00:10.9]} 62... g5 {[%clk 0:00:01.5]} 63. Rxg5
{[%clk 0:00:10.7]} 63... Kh8 {[%clk 0:00:02]} 64. Rg7 {[%clk 0:00:10.8]} 64...
Bf5 {[%clk 0:00:01.6]} 65. Rg8+ {[%clk 0:00:10.9]} 65... Kh7 {[%clk 0:00:01.7]}
66. Rg5 {[%clk 0:00:11.8]} 66... Be4 {[%clk 0:00:01.5]} 67. Kf7 {[%clk
0:00:12.4]} 67... Kh8 {[%clk 0:00:01.4]} 68. Rg4 {[%clk 0:00:12.3]} 68... Bd3
{[%clk 0:00:01.5]} 69. Kf6 {[%clk 0:00:12.5]} 69... Bc2 {[%clk 0:00:01.6]} 70.
Rh4+ {[%clk 0:00:13.4]} 1-0

[Event "*** Titled Tuesday Blitz"]
[Site "Chess.com"]
[Date "2020.04.21"]
[Round "4"]
[White "tvjosue"]
[Black "Lagmantr"]
[Result "1-0"]
[WhiteElo "2531"]
[BlackElo "2709"]
[TimeControl "180+1"]
[EndTime "10:41:37 PDT"]
[Termination "tvjosue won by resignation"]

1. d4 {[%clk 0:03:00]} 1... g6 {[%clk 0:03:00.9]} 2. e4 {[%clk 0:02:58.6]} 2...
Bg7 {[%clk 0:03:01.8]} 3. Nc3 {[%clk 0:02:59]} 3... d6 {[%clk 0:03:02.3]} 4. Be3
{[%clk 0:02:56.4]} 4... Nd7 {[%clk 0:03:02.3]} 5. Qd2 {[%clk 0:02:54.7]} 5... h6
{[%clk 0:03:01.5]} 6. O-O-O {[%clk 0:02:54]} 6... e6 {[%clk 0:03:00.6]} 7. Kb1
{[%clk 0:02:54.3]} 7... Ne7 {[%clk 0:03:00.3]} 8. Nge2 {[%clk 0:02:53.3]} 8...
a6 {[%clk 0:02:52.7]} 9. g4 {[%clk 0:02:25.5]} 9... b5 {[%clk 0:02:47.9]} 10.
Ng3 {[%clk 0:02:24.9]} 10... Bb7 {[%clk 0:02:46.4]} 11. f3 {[%clk 0:02:21.4]}
11... b4 {[%clk 0:02:39.1]} 12. Nce2 {[%clk 0:02:20]} 12... a5 {[%clk
0:02:36.1]} 13. Nc1 {[%clk 0:02:20.1]} 13... Nb6 {[%clk 0:02:33.6]} 14. h4
{[%clk 0:02:16.5]} 14... Ba6 {[%clk 0:02:30]} 15. Bxa6 {[%clk 0:02:09.7]} 15...
Rxa6 {[%clk 0:02:30.9]} 16. Qe2 {[%clk 0:02:09.5]} 16... Qa8 {[%clk 0:02:29.8]}
17. f4 {[%clk 0:02:05.2]} 17... a4 {[%clk 0:02:25]} 18. Qb5+ {[%clk 0:02:00.5]}
18... Kd8 {[%clk 0:02:09.2]} 19. Qxb4 {[%clk 0:01:57.8]} 19... Kd7 {[%clk
0:02:05.8]} 20. Qb5+ {[%clk 0:01:48.2]} 20... c6 {[%clk 0:02:04.6]} 21. Qd3
{[%clk 0:01:48]} 21... Rb8 {[%clk 0:02:04.6]} 22. e5 {[%clk 0:01:41]} 22... d5
{[%clk 0:02:03.4]} 23. f5 {[%clk 0:01:40.8]} 23... Nc4 {[%clk 0:02:02.3]} 24. b3
{[%clk 0:01:32.5]} 24... axb3 {[%clk 0:01:53.7]} 25. cxb3 {[%clk 0:01:33.4]}
25... Bf8 {[%clk 0:00:58.9]} 26. fxe6+ {[%clk 0:01:30.2]} 26... fxe6 {[%clk
0:00:59.8]} 27. Rh2 {[%clk 0:01:28.5]} 27... c5 {[%clk 0:00:39.6]} 28. dxc5
{[%clk 0:01:16.9]} 28... Nxe5 {[%clk 0:00:38.9]} 29. Qc3 {[%clk 0:01:15.5]}
29... N7c6 {[%clk 0:00:30.8]} 30. Bf4 {[%clk 0:01:10.1]} 30... Nxg4 {[%clk
0:00:17.3]} 31. Re2 {[%clk 0:00:46.6]} 31... Be7 {[%clk 0:00:16.7]} 32. Bxb8
{[%clk 0:00:37.9]} 32... Qxb8 {[%clk 0:00:17.6]} 33. Ne4 {[%clk 0:00:31]} 33...
Qe5 {[%clk 0:00:11.8]} 34. Qd3 {[%clk 0:00:24.5]} 34... Ra8 {[%clk 0:00:07.4]}
35. Qf3 {[%clk 0:00:20.2]} 35... Qf5 {[%clk 0:00:06.4]} 36. Qd3 {[%clk
0:00:18.5]} 36... Nge5 {[%clk 0:00:05.5]} 37. Qc2 {[%clk 0:00:16.3]} 37... Nf3
{[%clk 0:00:05.7]} 38. Nf2 {[%clk 0:00:15.2]} 38... Qxc2+ {[%clk 0:00:05.3]} 39.
Rxc2 {[%clk 0:00:16.1]} 39... Ncd4 {[%clk 0:00:05.7]} 40. Rc3 {[%clk 0:00:15]}
40... Bf6 {[%clk 0:00:06]} 41. Rdd3 {[%clk 0:00:13.8]} 41... Ne1 {[%clk
0:00:04.9]} 42. Rd1 {[%clk 0:00:13]} 42... Ndf3 {[%clk 0:00:05]} 43. Re3 {[%clk
0:00:12.2]} 43... Bd4 {[%clk 0:00:05.3]} 44. c6+ {[%clk 0:00:12.9]} 44... Kxc6
{[%clk 0:00:05.3]} 45. Rxe6+ {[%clk 0:00:13.3]} 45... Kd7 {[%clk 0:00:05.8]} 46.
Re2 {[%clk 0:00:13.7]} 46... Ng2 {[%clk 0:00:04.9]} 47. Nfd3 {[%clk 0:00:13.5]}
47... Ne3 {[%clk 0:00:04.8]} 48. Rh1 {[%clk 0:00:12.9]} 48... Re8 {[%clk
0:00:03.9]} 49. Rh3 {[%clk 0:00:12.7]} 49... Ne5 {[%clk 0:00:03.3]} 50. Rhxe3
{[%clk 0:00:12.1]} 50... Bxe3 {[%clk 0:00:04.1]} 51. Rxe3 {[%clk 0:00:13]} 51...
Nxd3 {[%clk 0:00:04.4]} 52. Rxd3 {[%clk 0:00:13.9]} 52... Kd6 {[%clk 0:00:04.3]}
53. Rd4 {[%clk 0:00:14.3]} 53... g5 {[%clk 0:00:04.2]} 54. hxg5 {[%clk
0:00:14.4]} 54... hxg5 {[%clk 0:00:05.1]} 55. Rg4 {[%clk 0:00:15.3]} 55... Rg8
{[%clk 0:00:05.4]} 56. Nd3 {[%clk 0:00:15.1]} 56... Ke6 {[%clk 0:00:05.5]} 57.
Nf2 {[%clk 0:00:15.4]} 57... Kf5 {[%clk 0:00:05.8]} 58. Rg2 {[%clk 0:00:15.9]}
58... Kf4 {[%clk 0:00:05.5]} 59. Nh3+ {[%clk 0:00:15.6]} 59... Kf5 {[%clk
0:00:04.8]} 60. Rxg5+ {[%clk 0:00:16.5]} 60... Rxg5 {[%clk 0:00:04.8]} 61. Nxg5
{[%clk 0:00:17.4]} 61... Kxg5 {[%clk 0:00:05.7]} 62. Kc2 {[%clk 0:00:18.3]}
62... Kf4 {[%clk 0:00:06.5]} 63. Kd3 {[%clk 0:00:19.2]} 63... Ke5 {[%clk
0:00:07.1]} 64. a4 {[%clk 0:00:19.8]} 64... Kd6 {[%clk 0:00:08]} 65. b4 {[%clk
0:00:20.7]} 65... Kc6 {[%clk 0:00:08.2]} 66. Kd4 {[%clk 0:00:21.6]} 66... Kd6
{[%clk 0:00:09.1]} 67. b5 {[%clk 0:00:21.8]} 1-0

[Event "*** Titled Tuesday Blitz"]
[Site "Chess.com"]
[Date "2020.04.21"]
[Round "4"]
[White "nonscitis"]
[Black "Lion-Al-Messi"]
[Result "0-1"]
[WhiteElo "2603"]
[BlackElo "2441"]
[TimeControl "180+1"]
[EndTime "10:41:37 PDT"]
[Termination "Lion-Al-Messi won by resignation"]

1. d4 {[%clk 0:03:00.7]} 1... b6 {[%clk 0:02:59.9]} 2. Nf3 {[%clk 0:03:00.6]}
2... Bb7 {[%clk 0:03:00.2]} 3. g4 {[%clk 0:03:00.2]} 3... e6 {[%clk 0:02:58.3]}
4. Bg2 {[%clk 0:03:00.1]} 4... Ne7 {[%clk 0:02:58.2]} 5. O-O {[%clk 0:03:00.1]}
5... Nbc6 {[%clk 0:02:56.2]} 6. e4 {[%clk 0:02:59.4]} 6... d5 {[%clk 0:02:55.8]}
7. Nc3 {[%clk 0:02:48.4]} 7... dxe4 {[%clk 0:02:54.9]} 8. Nxe4 {[%clk
0:02:48.3]} 8... Ng6 {[%clk 0:02:53.9]} 9. Re1 {[%clk 0:02:35]} 9... Be7 {[%clk
0:02:53.9]} 10. a3 {[%clk 0:02:30.9]} 10... O-O {[%clk 0:02:53.7]} 11. c4 {[%clk
0:02:30.2]} 11... Qd7 {[%clk 0:02:38.7]} 12. d5 {[%clk 0:02:11]} 12... exd5
{[%clk 0:02:37.7]} 13. cxd5 {[%clk 0:02:07.6]} 13... Nce5 {[%clk 0:02:37.3]} 14.
Nxe5 {[%clk 0:02:00.6]} 14... Nxe5 {[%clk 0:02:38.2]} 15. Bf4 {[%clk 0:01:41.7]}
15... Nxg4 {[%clk 0:02:30.8]} 16. Rc1 {[%clk 0:01:39.7]} 16... Rac8 {[%clk
0:02:27]} 17. h3 {[%clk 0:01:23.5]} 17... Nf6 {[%clk 0:02:24.1]} 18. d6 {[%clk
0:01:19.5]} 18... cxd6 {[%clk 0:02:20]} 19. Rxc8 {[%clk 0:01:16.9]} 19... Rxc8
{[%clk 0:02:18.7]} 20. Nxd6 {[%clk 0:01:11.3]} 20... Bxd6 {[%clk 0:02:11.2]} 21.
Qxd6 {[%clk 0:01:06.1]} 21... Qxd6 {[%clk 0:02:06.8]} 22. Bxd6 {[%clk
0:01:05.7]} 22... Bxg2 {[%clk 0:02:07.4]} 23. Kxg2 {[%clk 0:01:06.6]} 23... Rd8
{[%clk 0:01:47.4]} 24. Rc1 {[%clk 0:00:54.2]} 24... Nd5 {[%clk 0:01:33.4]} 25.
Bg3 {[%clk 0:00:48.2]} 25... f6 {[%clk 0:01:31.5]} 26. a4 {[%clk 0:00:48.3]}
26... Kf7 {[%clk 0:01:29.6]} 27. a5 {[%clk 0:00:47.7]} 27... Ke6 {[%clk
0:01:20.1]} 28. axb6 {[%clk 0:00:47]} 28... axb6 {[%clk 0:01:18.5]} 29. Ra1
{[%clk 0:00:45]} 29... g5 {[%clk 0:01:10.6]} 30. h4 {[%clk 0:00:43.1]} 30... g4
{[%clk 0:00:56]} 31. Ra7 {[%clk 0:00:38.2]} 31... Rd7 {[%clk 0:00:56.3]} 32. Ra8
{[%clk 0:00:38.4]} 32... Kf5 {[%clk 0:00:53.4]} 33. Rb8 {[%clk 0:00:34.2]} 33...
Ke4 {[%clk 0:00:29.3]} 34. Re8+ {[%clk 0:00:27]} 34... Kd3 {[%clk 0:00:28.9]}
35. h5 {[%clk 0:00:27.2]} 35... Kc2 {[%clk 0:00:27.2]} 36. Re2+ {[%clk
0:00:26.4]} 36... Kd1 {[%clk 0:00:27.5]} 37. Re6 {[%clk 0:00:25.2]} 37... Kc2
{[%clk 0:00:27.4]} 38. Re2+ {[%clk 0:00:24.9]} 38... Kb3 {[%clk 0:00:27.7]} 39.
Kh2 {[%clk 0:00:21.1]} 39... f5 {[%clk 0:00:26.5]} 40. Rd2 {[%clk 0:00:20.4]}
40... Nf6 {[%clk 0:00:17.7]} 41. Re2 {[%clk 0:00:21]} 41... Nxh5 {[%clk
0:00:17.1]} 42. Re5 {[%clk 0:00:21.4]} 42... Nxg3 {[%clk 0:00:16.4]} 43. Kxg3
{[%clk 0:00:21.1]} 43... Rd3+ {[%clk 0:00:16.9]} 44. Kg2 {[%clk 0:00:20.8]}
44... Kxb2 {[%clk 0:00:14.7]} 45. Rxf5 {[%clk 0:00:21.2]} 45... Rb3 {[%clk
0:00:10.1]} 46. Rh5 {[%clk 0:00:21.4]} 46... Rb4 {[%clk 0:00:09.9]} 47. Rxh7
{[%clk 0:00:21.8]} 47... b5 {[%clk 0:00:10.1]} 48. Kf1 {[%clk 0:00:22.4]} 48...
Ka3 {[%clk 0:00:09.6]} 49. Ke2 {[%clk 0:00:22.8]} 49... Re4+ {[%clk 0:00:08]}
50. Kd3 {[%clk 0:00:23.2]} 50... Rf4 {[%clk 0:00:08.1]} 51. Rg7 {[%clk 0:00:23]}
51... b4 {[%clk 0:00:07.5]} 52. Ra7+ {[%clk 0:00:23.1]} 52... Kb3 {[%clk
0:00:07.1]} 53. Ke3 {[%clk 0:00:22.1]} 53... Rc4 {[%clk 0:00:07.3]} 54. Rg7
{[%clk 0:00:21.5]} 54... Kc3 {[%clk 0:00:07.2]} 55. Ke2 {[%clk 0:00:21.6]} 55...
b3 {[%clk 0:00:07.4]} 56. Kd1 {[%clk 0:00:21.1]} 56... b2 {[%clk 0:00:06.9]} 57.
Rb7 {[%clk 0:00:21.1]} 57... Rb4 {[%clk 0:00:07.1]} 58. Rxb4 {[%clk 0:00:20.6]}
58... Kxb4 {[%clk 0:00:08]} 59. Kc2 {[%clk 0:00:21.2]} 59... Ka3 {[%clk
0:00:08.1]} 60. Kb1 {[%clk 0:00:21.6]} 60... Kb3 {[%clk 0:00:08.2]} 61. f4
{[%clk 0:00:13.7]} 61... g3 {[%clk 0:00:09.1]} 62. f5 {[%clk 0:00:14.2]} 62...
g2 {[%clk 0:00:10]} 0-1